fUSD/lending_fUSD_20250617
["ID","MTS","AMOUNT","RATE_DAILY","PERIOD"]
[366277378,1750170656333,-1100.96,0.00016602,2]
[366277380,1750170656343,-490.0,0.00016602,2]
[366277382,1750170656354,-490.0,0.00016602,2]
[366277384,1750170656364,-490.0,0.00016602,2]
[366277386,1750170656374,-1346.07,0.00016602,2]
[366277388,1750170656384,-490.0,0.00016602,2]
[366277390,1750170656394,-490.0,0.00016602,2]
[366277392,1750170656404,-490.0,0.00016602,2]
[366277394,1750170656414,-510.94,0.00016602,2]
[366277396,1750170656424,-490.0,0.00016602,2]
[366277398,1750170656434,-490.0,0.00016602,2]
[366277400,1750170656443,-525.26,0.00016602,2]
[366277402,1750170656453,-821.93,0.00016602,2]
[366277403,1750170656463,-490.0,0.00016602,2]
[366277406,1750170656474,-490.0,0.00016602,2]
[366277408,1750170656484,-490.0,0.00016602,2]
[366277410,1750170656493,-490.0,0.00016602,2]
[366277411,1750170656503,-492.94937854,0.00016602,2]
[366277413,1750170656512,-490.0,0.00016602,2]
[366277416,1750170656523,-490.0,0.00016602,2]
[366277417,1750170656535,-711.46,0.00016602,2]
[366277419,1750170656545,-490.0,0.00016602,2]
[366277421,1750170656555,-878.76,0.00016602,2]
[366277423,1750170656565,-538.86,0.00016602,2]
[366277425,1750170656575,-490.0,0.00016602,2]
[366277428,1750170656585,-490.0,0.00016602,2]
[366277430,1750170656596,-490.0,0.00016602,2]
[366277432,1750170656606,-1159.99,0.00016602,2]
[366277434,1750170656616,-490.0,0.00016602,2]
[366277435,1750170656626,-490.0,0.00016602,2]
[366277438,1750170656637,-490.0,0.00016602,2]
[366277439,1750170656646,-490.0,0.00016602,2]
[366277442,1750170656660,-490.0,0.00016602,2]
[366277444,1750170656670,-490.0,0.00016602,2]
[366277446,1750170656679,-490.0,0.00016602,2]
[366277448,1750170656689,-490.0,0.00016602,2]
[366277450,1750170656699,-490.0,0.00016602,2]
[366277452,1750170656707,-490.0,0.00016602,2]
[366277454,1750170656717,-999.54,0.00016602,2]
[366277456,1750170656727,-490.0,0.00016602,2]
[366277458,1750170656736,-490.0,0.00016602,2]
[366277460,1750170656746,-1022.75,0.00016602,2]
[366277462,1750170656756,-941.81,0.00016602,2]
[366277464,1750170656767,-490.0,0.00016602,2]
[366277466,1750170656778,-490.0,0.00016602,2]
[366277468,1750170656787,-490.0,0.00016602,2]
[366277470,1750170656797,-490.0,0.00016602,2]
[366277472,1750170656807,-490.0,0.00016602,2]
[366277474,1750170656822,-490.0,0.00016602,2]
[366277476,1750170656833,-490.0,0.00016602,2]
[366277478,1750170656842,-490.0,0.00016602,2]
[366277480,1750170656851,-490.0,0.00016602,2]
[366277482,1750170656862,-618.68,0.00016602,2]
[366277484,1750170656872,-490.0,0.00016602,2]
[366277486,1750170656882,-490.0,0.00016602,2]
[366277488,1750170656894,-490.0,0.00016602,2]
[366277490,1750170656904,-1516.77,0.00016602,2]
[366277492,1750170656913,-490.0,0.00016602,2]
[366277494,1750170656923,-490.0,0.00016602,2]
[366277496,1750170656932,-490.0,0.00016602,2]
[366277498,1750170656941,-1131.8,0.00016602,2]
[366277500,1750170656951,-551.88,0.00016602,2]
[366277502,1750170656961,-490.0,0.00016602,2]
[366277504,1750170656970,-490.0,0.00016602,2]
[366277506,1750170656980,-686.42,0.00016602,2]
[366277508,1750170656989,-184.8104788,0.00016602,2]
[366277510,1750170656998,-490.0,0.00016602,2]
[366277511,1750170657007,-990.23,0.00016602,2]
[366277514,1750170657017,-548.91,0.00016602,2]
[366277516,1750170657027,-490.0,0.00016602,2]
[366277517,1750170657036,-695.39,0.00016602,2]
[366277520,1750170657046,-490.0,0.00016602,2]
[366277521,1750170657056,-490.0,0.00016602,2]
[366277523,1750170657066,-535.2,0.00016602,2]
[366277525,1750170657075,-490.0,0.00016602,2]
[366277527,1750170657084,-490.0,0.00016602,2]
[366277529,1750170657095,-425.3854282,0.00016602,2]
[366277531,1750170657104,-490.0,0.00016602,2]
[366277533,1750170657114,-490.0,0.00016602,2]
[366277535,1750170657123,-490.0,0.00016602,2]
[366277537,1750170657133,-490.0,0.00016602,2]
[366277539,1750170657143,-490.0,0.00016602,2]
[366277541,1750170657153,-490.0,0.00016602,2]
[366277543,1750170657163,-490.0,0.00016602,2]
[366277545,1750170657172,-606.28,0.00016602,2]
[366277546,1750170657182,-490.0,0.00016602,2]
[366277547,1750170657191,-511.66,0.00016602,2]
[366277548,1750170657201,-490.0,0.00016602,2]
[366277549,1750170657211,-490.0,0.00016602,2]
[366277550,1750170657221,-490.0,0.00016602,2]
[366277551,1750170657230,-762.97,0.00016602,2]
[366277552,1750170657239,-172.92966066,0.00016602,2]
[366277553,1750170657249,-639.11797386,0.00016602,2]
[366277554,1750170657260,-490.0,0.00016602,2]
[366277555,1750170657271,-490.0,0.00016602,2]
[366277556,1750170657280,-490.0,0.00016602,2]
[366277557,1750170657291,-364.78429813,0.00016602,2]
[366277558,1750170657305,-809.39,0.00016602,2]
[366277559,1750170657323,-490.0,0.00016602,2]
[366277560,1750170657338,-490.0,0.00016602,2]
[366277561,1750170657350,-490.0,0.00016602,2]
[366277562,1750170657364,-490.0,0.00016602,2]
[366277563,1750170657379,-1225.94,0.00016602,2]
[366277564,1750170657393,-656.65,0.00016602,2]
[366277565,1750170657410,-490.0,0.00016602,2]
[366277566,1750170657424,-490.0,0.00016602,2]
[366277567,1750170657438,-490.0,0.00016602,2]
[366277568,1750170657449,-490.0,0.00016602,2]
[366277569,1750170657463,-679.15,0.00016602,2]
[366277570,1750170657477,-490.0,0.00016602,2]
[366277571,1750170657492,-506.56,0.00016602,2]
[366277572,1750170657506,-1167.5,0.00016602,2]
[366277573,1750170657523,-490.0,0.00016602,2]
[366277574,1750170657538,-490.0,0.00016602,2]
[366277575,1750170657554,-601.91,0.00016602,2]
[366277576,1750170657568,-490.0,0.00016602,2]
[366277577,1750170657584,-490.0,0.00016602,2]
[366277578,1750170657599,-611.09,0.00016602,2]
[366277579,1750170657612,-490.0,0.00016602,2]
[366277580,1750170657627,-785.74,0.00016602,2]
[366277581,1750170657640,-490.0,0.00016602,2]
[366277582,1750170657655,-490.0,0.00016602,2]
[366277583,1750170657672,-490.0,0.00016602,2]
[366277584,1750170657685,-490.0,0.00016602,2]
[366277585,1750170657699,-1316.85,0.00016602,2]
[366277586,1750170657712,-490.0,0.00016602,2]
[366277587,1750170657723,-490.0,0.00016602,2]
[366277588,1750170657735,-547.23,0.00016602,2]
[366277589,1750170657751,-490.0,0.00016602,2]
[366277590,1750170657767,-769.53,0.00016602,2]
[366277591,1750170657778,-650.07,0.00016602,2]
[366277592,1750170657790,-490.0,0.00016602,2]
[366277593,1750170657803,-490.0,0.00016602,2]
[366277594,1750170657820,-490.0,0.00016602,2]
[366277595,1750170657837,-1148.15,0.00016602,2]
[366277596,1750170657851,-490.0,0.00016602,2]
[366277597,1750170657863,-15777.44,0.00016602,2]
[366277598,1750170657875,-12264.38,0.00016602,2]
[366277599,1750170657891,-490.0,0.00016602,2]
[366277600,1750170657904,-490.0,0.00016602,2]
[366277601,1750170657917,-1022.2,0.00016602,2]
[366277602,1750170657930,-490.0,0.00016602,2]
[366277603,1750170657943,-1307.87,0.00016602,2]
[366277604,1750170657957,-5315.22,0.00016602,2]
[366277605,1750170657970,-490.0,0.00016602,2]
[366277606,1750170657983,-786.58,0.00016602,2]
[366277607,1750170657996,-490.0,0.00016602,2]
[366277608,1750170658009,-490.0,0.00016602,2]
[366277609,1750170658023,-881.41,0.00016602,2]
[366277610,1750170658037,-490.0,0.00016602,2]
[366277611,1750170658050,-856.32,0.00016602,2]
[366277612,1750170658063,-891.29,0.00016602,2]
[366277613,1750170658076,-2879.0,0.00016602,2]
[366277614,1750170658090,-699.08,0.00016602,2]
[366277615,1750170658103,-490.0,0.00016602,2]
[366277616,1750170658115,-490.0,0.00016602,2]
[366277617,1750170658128,-4636.82,0.00016602,2]
[366277618,1750170658140,-490.0,0.00016602,2]
[366277619,1750170658153,-490.0,0.00016602,2]
[366277620,1750170658166,-490.0,0.00016602,2]
[366277621,1750170658178,-490.0,0.00016602,2]
[366277622,1750170658191,-490.0,0.00016602,2]
[366277623,1750170658204,-490.0,0.00016602,2]
[366277624,1750170658218,-1008.56,0.00016602,2]
[366277625,1750170658232,-490.0,0.00016602,2]
[366277626,1750170658245,-1190.58,0.00016602,2]
[366277627,1750170658258,-490.0,0.00016602,2]
[366277628,1750170658272,-1512.34,0.00016602,2]
[366277629,1750170658285,-490.0,0.00016602,2]
[366277630,1750170658298,-490.0,0.00016602,2]
[366277631,1750170658312,-490.0,0.00016602,2]
[366277632,1750170658325,-490.0,0.00016602,2]
[366277633,1750170658338,-490.0,0.00016602,2]
[366277634,1750170658351,-854.67,0.00016602,2]
[366277635,1750170658364,-2496.37,0.00016602,2]
[366277636,1750170658377,-1681.96,0.00016602,2]
[366277637,1750170658390,-490.0,0.00016602,2]
[366277638,1750170658403,-359.28726763,0.00016602,2]
[366277639,1750170658416,-12466.69,0.00016602,2]
[366277640,1750170658431,-490.0,0.00016602,2]
[366277641,1750170658444,-490.0,0.00016602,2]
[366277642,1750170658457,-490.0,0.00016602,2]
[366277643,1750170658469,-2828.7,0.00016602,2]
[366277644,1750170658483,-746.86,0.00016602,2]
[366277645,1750170658495,-1096.37,0.00016602,2]
[366277646,1750170658507,-896.34,0.00016602,2]
[366277647,1750170658521,-490.0,0.00016602,2]
[366277648,1750170658533,-490.0,0.00016602,2]
[366277649,1750170658546,-490.0,0.00016602,2]
[366277650,1750170658558,-490.0,0.00016602,2]
[366277651,1750170658572,-490.0,0.00016602,2]
[366277652,1750170658585,-7677.3,0.00016602,2]
[366277653,1750170658609,-490.0,0.00016602,2]
[366277654,1750170658622,-490.0,0.00016602,2]
[366277655,1750170658636,-1686.23,0.00016602,2]
[366277656,1750170658649,-2036.86,0.00016602,2]
[366277657,1750170658663,-490.0,0.00016602,2]
[366277658,1750170658676,-490.0,0.00016602,2]
[366277659,1750170658689,-1096.42,0.00016602,2]
[366277660,1750170658702,-490.0,0.00016602,2]
[366277662,1750170658715,-490.0,0.00016602,2]
[366277663,1750170658727,-1591.14,0.00016602,2]
[366277664,1750170658740,-490.0,0.00016602,2]
[366277665,1750170658754,-490.0,0.00016602,2]
[366277666,1750170658767,-566.24,0.00016602,2]
[366277667,1750170658780,-490.0,0.00016602,2]
[366277668,1750170658793,-490.0,0.00016602,2]
[366277669,1750170658806,-490.0,0.00016602,2]
[366277670,1750170658822,-1084.71,0.00016602,2]
[366277671,1750170658834,-745.91,0.00016602,2]
[366277672,1750170658847,-490.0,0.00016602,2]
[366277673,1750170658860,-613.95917615,0.00016602,2]
[366277674,1750170658872,-490.0,0.00016602,2]
[366277675,1750170658884,-690.04,0.00016602,2]
[366277676,1750170658899,-2724.41,0.00016602,2]
[366277677,1750170658911,-3218.96,0.00016602,2]
[366277678,1750170658924,-855.14,0.00016602,2]
[366277679,1750170658936,-1509.12,0.00016602,2]
[366277680,1750170658948,-490.0,0.00016602,2]
[366277681,1750170658960,-490.0,0.00016602,2]
[366277682,1750170658973,-490.0,0.00016602,2]
[366277683,1750170658985,-490.0,0.00016602,2]
[366277684,1750170658997,-2725.08,0.00016602,2]
[366277685,1750170659010,-690.05,0.00016602,2]
[366277686,1750170659022,-490.0,0.00016602,2]
[366277687,1750170659035,-1429.63,0.00016602,2]
[366277688,1750170659047,-929.18,0.00016602,2]
[366277689,1750170659059,-490.0,0.00016602,2]
[366277690,1750170659071,-1076.9,0.00016602,2]
[366277691,1750170659083,-490.0,0.00016602,2]
[366277692,1750170659095,-1243.13,0.00016602,2]
[366277693,1750170659108,-490.0,0.00016602,2]
[366277694,1750170659120,-490.0,0.00016602,2]
[366277695,1750170659132,-834.3,0.00016602,2]
[366277696,1750170659143,-590.64,0.00016602,2]
[366277697,1750170659155,-975.96,0.00016602,2]
[366277698,1750170659167,-506.41,0.00016602,2]
[366277699,1750170659180,-490.0,0.00016602,2]
[366277700,1750170659192,-502.22,0.00016602,2]
[366277701,1750170659204,-490.0,0.00016602,2]
[366277702,1750170659216,-490.0,0.00016602,2]
[366277703,1750170659228,-1997.32,0.00016602,2]
[366277704,1750170659241,-589.56,0.00016602,2]
[366277705,1750170659253,-490.0,0.00016602,2]
[366277706,1750170659266,-490.0,0.00016602,2]
[366277707,1750170659278,-1114.27,0.00016602,2]
[366277708,1750170659291,-21810.33,0.00016602,2]
[366277709,1750170659304,-490.0,0.00016602,2]
[366277710,1750170659317,-814.89,0.00016602,2]
[366277711,1750170659329,-490.0,0.00016602,2]
[366277712,1750170659342,-1678.38,0.00016602,2]
[366277713,1750170659355,-490.0,0.00016602,2]
[366277714,1750170659367,-1160.08,0.00016602,2]
[366277715,1750170659380,-1605.95,0.00016602,2]
[366277716,1750170659392,-825.85,0.00016602,2]
[366277717,1750170659405,-2687.72,0.00016602,2]
[366277718,1750170659418,-490.0,0.00016602,2]
[366277719,1750170659431,-490.0,0.00016602,2]
[366277720,1750170659444,-899.13,0.00016602,2]
[366277721,1750170659457,-717.92,0.00016602,2]
[366277722,1750170659469,-490.0,0.00016602,2]
[366277723,1750170659482,-490.0,0.00016602,2]
[366277724,1750170659494,-490.0,0.00016602,2]
[366277725,1750170659507,-490.0,0.00016602,2]
[366277726,1750170659519,-1728.83,0.00016602,2]
[366277727,1750170659530,-490.0,0.00016602,2]
[366277728,1750170659543,-1534.24,0.00016602,2]
[366277729,1750170659555,-219.18,0.00016602,2]
[366277730,1750170659567,-490.0,0.00016602,2]
[366277731,1750170659579,-490.0,0.00016602,2]
[366277732,1750170659591,-987.31,0.00016602,2]
[366277733,1750170659603,-533.17,0.00016602,2]
[366277734,1750170659615,-572.33,0.00016602,2]
[366277735,1750170659627,-4774.18,0.00016602,2]
[366277736,1750170659639,-490.0,0.00016602,2]
[366277737,1750170659652,-523.61,0.00016602,2]
[366277738,1750170659665,-490.0,0.00016602,2]
[366277739,1750170659678,-1894.01,0.00016602,2]
[366277740,1750170659690,-490.0,0.00016602,2]
[366277741,1750170659703,-14734.5,0.00016602,2]
[366277742,1750170659715,-4132.74,0.00016602,2]
[366277743,1750170659727,-749.53,0.00016602,2]
[366277744,1750170659740,-2264.38,0.00016602,2]
[366277745,1750170659751,-537.11,0.00016602,2]
[366277746,1750170659764,-490.0,0.00016602,2]
[366277747,1750170659777,-490.0,0.00016602,2]
[366277748,1750170659789,-674.57,0.00016602,2]
[366277749,1750170659801,-490.0,0.00016602,2]
[366277750,1750170659816,-181.96763665,0.00016602,2]
[366277751,1750170659828,-490.0,0.00016602,2]
[366277752,1750170659840,-490.0,0.00016602,2]
[366277753,1750170659852,-490.0,0.00016602,2]
[366277754,1750170659864,-2109.78,0.00016602,2]
[366277755,1750170659876,-490.0,0.00016602,2]
[366277756,1750170659890,-490.0,0.00016602,2]
[366277757,1750170659902,-1067.24,0.00016602,2]
[366277758,1750170659914,-847.23,0.00016602,2]
[366277759,1750170659926,-490.0,0.00016602,2]
[366277760,1750170659939,-490.0,0.00016602,2]
[366277761,1750170659951,-490.0,0.00016602,2]
[366277762,1750170659964,-443.35923223,0.00016602,2]
[366277763,1750170659976,-3921.17,0.00016602,2]
[366277764,1750170659990,-490.0,0.00016602,2]
[366277765,1750170660002,-668.77,0.00016602,2]
[366277766,1750170660014,-490.0,0.00016602,2]
[366277767,1750170660028,-830.12,0.00016602,2]
[366277768,1750170660041,-1903.08,0.00016602,2]
[366277769,1750170660054,-2021.83,0.00016602,2]
[366277770,1750170660067,-974.47,0.00016602,2]
[366277771,1750170660080,-603.78,0.00016602,2]
[366277772,1750170660093,-490.0,0.00016602,2]
[366277773,1750170660105,-1057.67,0.00016602,2]
[366277774,1750170660117,-1882.55,0.00016602,2]
[366277775,1750170660131,-490.0,0.00016602,2]
[366277776,1750170660144,-2684.73,0.00016602,2]
[366277777,1750170660157,-1004.68,0.00016602,2]
[366277778,1750170660170,-490.0,0.00016602,2]
[366277779,1750170660183,-1149.26,0.00016602,2]
[366277780,1750170660195,-977.57,0.00016602,2]
[366277781,1750170660208,-490.0,0.00016602,2]
[366277782,1750170660221,-490.0,0.00016602,2]
[366277783,1750170660233,-490.0,0.00016602,2]
[366277784,1750170660246,-1309.34,0.00016602,2]
[366277785,1750170660258,-490.0,0.00016602,2]
[366277786,1750170660272,-490.0,0.00016602,2]
[366277787,1750170660285,-2440.35,0.00016602,2]
[366277788,1750170660299,-490.0,0.00016602,2]
[366277789,1750170660312,-1015.57,0.00016602,2]
[366277790,1750170660326,-490.38,0.00016602,2]
[366277791,1750170660339,-1901.57,0.00016602,2]
[366277792,1750170660352,-1217.21,0.00016602,2]
[366277793,1750170660365,-978.67,0.00016602,2]
[366277794,1750170660378,-490.0,0.00016602,2]
[366277795,1750170660392,-850.14,0.00016602,2]
[366277796,1750170660405,-490.0,0.00016602,2]
[366277797,1750170660419,-490.0,0.00016602,2]
[366277798,1750170660432,-4902.88,0.00016602,2]
[366277799,1750170660445,-773.09,0.00016602,2]
[366277800,1750170660457,-490.0,0.00016602,2]
[366277801,1750170660470,-1033.47,0.00016602,2]
[366277802,1750170660483,-1461.21,0.00016602,2]
[366277803,1750170660495,-2702.17,0.00016602,2]
[366277804,1750170660508,-490.0,0.00016602,2]
[366277805,1750170660522,-8008.83,0.00016602,2]
[366277806,1750170660534,-1459.18,0.00016602,2]
[366277807,1750170660546,-1121.61,0.00016602,2]
[366277808,1750170660559,-490.0,0.00016602,2]
[366277809,1750170660572,-3186.83,0.00016602,2]
[366277810,1750170660585,-670.32,0.00016602,2]
[366277811,1750170660598,-490.0,0.00016602,2]
[366277812,1750170660610,-796.53,0.00016602,2]
[366277813,1750170660624,-5432.41,0.00016602,2]
[366277814,1750170660636,-490.0,0.00016602,2]
[366277815,1750170660649,-831.33,0.00016602,2]
[366277816,1750170660662,-533.48,0.00016602,2]
[366277817,1750170660675,-490.0,0.00016602,2]
[366277818,1750170660688,-490.0,0.00016602,2]
[366277819,1750170660701,-1424.93,0.00016602,2]
[366277820,1750170660713,-7941.25,0.00016602,2]
[366277821,1750170660726,-490.0,0.00016602,2]
[366277822,1750170660739,-1335.63,0.00016602,2]
[366277823,1750170660751,-490.0,0.00016602,2]
[366277824,1750170660764,-819.14,0.00016602,2]
[366277825,1750170660780,-490.0,0.00016602,2]
[366277826,1750170660794,-1635.89,0.00016602,2]
[366277827,1750170660810,-2218.05,0.00016602,2]
[366277828,1750170660824,-490.0,0.00016602,2]
[366277829,1750170660838,-5234.09,0.00016602,2]
[366277830,1750170660852,-490.0,0.00016602,2]
[366277831,1750170660866,-3053.69,0.00016602,2]
[366277832,1750170660879,-876.66,0.00016602,2]
[366277833,1750170660893,-490.0,0.00016602,2]
[366277834,1750170660906,-3589.54,0.00016602,2]
[366277835,1750170660918,-756.35,0.00016602,2]
[366277836,1750170660930,-490.0,0.00016602,2]
[366277837,1750170660944,-539.98,0.00016602,2]
[366277838,1750170660957,-490.0,0.00016602,2]
[366277839,1750170660971,-720.5,0.00016602,2]
[366277840,1750170660984,-490.0,0.00016602,2]
[366277841,1750170660994,-490.0,0.00016602,2]
[366277842,1750170661004,-490.0,0.00016602,2]
[366277843,1750170661014,-490.0,0.00016602,2]
[366277844,1750170661025,-490.0,0.00016602,2]
[366277845,1750170661035,-490.0,0.00016602,2]
[366277846,1750170661045,-490.0,0.00016602,2]
[366277847,1750170661055,-490.0,0.00016602,2]
[366277848,1750170661065,-708.06,0.00016602,2]
[366277849,1750170661074,-729.92,0.00016602,2]
[366277850,1750170661084,-490.0,0.00016602,2]
[366277851,1750170661094,-1046.68,0.00016602,2]
[366277852,1750170661104,-490.0,0.00016602,2]
[366277853,1750170661113,-739.64,0.00016602,2]
[366277854,1750170661123,-490.0,0.00016602,2]
[366277855,1750170661133,-490.0,0.00016602,2]
[366277856,1750170661143,-893.75,0.00016602,2]
[366277857,1750170661788,-573.73,0.00016602,2]
[366277858,1750170661834,-490.0,0.00016602,2]
[366277859,1750170661862,-9847.01,0.00016602,2]
[366277860,1750170661881,-490.0,0.00016602,2]
[366277861,1750170661891,-601.08,0.00016602,2]
[366277862,1750170661902,-5561.31,0.00016602,2]
[366277863,1750170661912,-490.0,0.00016602,2]
[366277864,1750170661922,-490.0,0.00016602,2]
[366277865,1750170661932,-2699.9,0.00016602,2]
[366277866,1750170661942,-1418.78,0.00016602,2]
[366277867,1750170661951,-490.0,0.00016602,2]
[366277868,1750170661961,-3156.79,0.00016602,2]
[366277869,1750170661971,-490.0,0.00016602,2]
[366277870,1750170661982,-742.83,0.00016602,2]
[366277871,1750170661992,-2279.54,0.00016602,2]
[366277872,1750170662002,-490.0,0.00016602,2]
[366277873,1750170662011,-1360.94,0.00016602,2]
[366277874,1750170662025,-2363.44,0.00016602,2]
[366277875,1750170662035,-490.0,0.00016602,2]
[366277876,1750170662046,-490.0,0.00016602,2]
[366277877,1750170662055,-970.38,0.00016602,2]
[366277878,1750170662065,-490.0,0.00016602,2]
[366277879,1750170662075,-645.17,0.00016602,2]
[366277880,1750170662086,-1622.52,0.00016602,2]
[366277881,1750170662095,-490.0,0.00016602,2]
[366277882,1750170662106,-863.82,0.00016602,2]
[366277883,1750170662116,-490.0,0.00016602,2]
[366277884,1750170662126,-490.0,0.00016602,2]
[366277885,1750170662136,-490.0,0.00016602,2]
[366277886,1750170662145,-555.04,0.00016602,2]
[366277887,1750170662155,-590.41,0.00016602,2]
[366277888,1750170662165,-490.0,0.00016602,2]
[366277889,1750170662175,-505.99,0.00016602,2]
[366277890,1750170662185,-745.39,0.00016602,2]
[366277891,1750170662194,-1245.11,0.00016602,2]
[366277892,1750170662204,-2154.73,0.00016602,2]
[366277893,1750170662214,-490.0,0.00016602,2]
[366277894,1750170662223,-490.0,0.00016602,2]
[366277895,1750170662233,-490.0,0.00016602,2]
[366277896,1750170662243,-490.0,0.00016602,2]
[366277897,1750170662253,-2838.93,0.00016602,2]
[366277898,1750170662263,-558.21,0.00016602,2]
[366277899,1750170662276,-2002.55,0.00016602,2]
[366277900,1750170662286,-490.0,0.00016602,2]
[366277901,1750170662296,-938.37,0.00016602,2]
[366277902,1750170662307,-490.0,0.00016602,2]
[366277903,1750170662317,-490.0,0.00016602,2]
[366277904,1750170662327,-490.0,0.00016602,2]
[366277905,1750170662337,-490.0,0.00016602,2]
[366277906,1750170662348,-3068.23,0.00016602,2]
[366277907,1750170662358,-490.0,0.00016602,2]
[366277908,1750170662369,-490.0,0.00016602,2]
[366277909,1750170662380,-490.64522843,0.00016602,2]
[366277910,1750170662390,-490.0,0.00016602,2]
[366277911,1750170662401,-787.19,0.00016602,2]
[366277912,1750170662412,-651.03,0.00016602,2]
[366277913,1750170662422,-3494.94,0.00016602,2]
[366277914,1750170662433,-490.0,0.00016602,2]
[366277915,1750170662443,-514.95,0.00016602,2]
[366277916,1750170662453,-739.16,0.00016602,2]
[366277917,1750170662463,-490.0,0.00016602,2]
[366277918,1750170662473,-632.54,0.00016602,2]
[366277919,1750170662484,-490.0,0.00016602,2]
[366277920,1750170662493,-1001.63,0.00016602,2]
[366277921,1750170662503,-952.13,0.00016602,2]
[366277922,1750170662515,-3765.36,0.00016602,2]
[366277923,1750170662529,-3032.97,0.00016602,2]
[366277924,1750170662539,-500.0,0.00016609,2]
[366277925,1750170662549,-170.19983462,0.00016609,2]
[366277926,1750170662560,-352.41454172,0.00016609,2]
[366277927,1750170662570,-152.15757342,0.00016609,2]
[366277928,1750170662581,-175.19335252,0.00016609,2]
[366277929,1750170662592,-500.0,0.00016609,2]
[366277930,1750170662602,-455.51394578,0.00016609,2]
[366277931,1750170662612,-258.05276572,0.00016609,2]
[366277932,1750170662623,-500.0,0.00016609,2]
[366277933,1750170662633,-286.3124681,0.00016609,2]
[366277934,1750170662643,-4728.78961437,0.00016624,2]
[366277935,1750170662653,-386.207424,0.000167,2]
[366277936,1750170662663,-386.207424,0.000167,2]
[366277937,1750170662674,-2000.0,0.000167,6]
[366277938,1750170662684,-641.09364437,0.00016706,2]
[366277939,1750170662694,-156.587,0.00016718,2]
[366277940,1750170662705,-215.0738,0.00016718,2]
[366277941,1750170662715,-168.0,0.00016745,2]
[366277942,1750170662726,-150.0,0.00016755,2]
[366277943,1750170662736,-500.0,0.00016755,2]
[366277944,1750170662747,-150.0,0.00016755,2]
[366277945,1750170662757,-150.0,0.00016755,2]
[366277946,1750170662767,-150.0,0.00016755,2]
[366277947,1750170662779,-150.0,0.00016755,2]
[366277948,1750170662790,-200.0,0.00016755,2]
[366277949,1750170662800,-150.0,0.00016755,2]
[366277950,1750170662811,-150.0,0.00016755,2]
[366277951,1750170662824,-500.0,0.00016755,2]
[366277952,1750170662834,-1668.652,0.00016762,2]
[366277953,1750170662844,-833.87704394,0.00016765,2]
[366277954,1750170662855,-1172.14,0.00016766,2]
[366277955,1750170662866,-1172.14,0.00016766,2]
[366277956,1750170662876,-151.0,0.00016767,2]
[366277957,1750170662887,-490.88796388,0.00016767,2]
[366277958,1750170662898,-151.0,0.00016767,2]
[366277959,1750170662908,-151.0,0.00016767,2]
[366277960,1750170662919,-151.0,0.00016767,2]
[366277961,1750170662929,-386.207424,0.00016767,2]